bitfinex-derivatives/quotes_BTCF0:USTF0_20220103
["timestamp","ask_amount","ask_price","bid_price","bid_amount"]
[1641218020878,0.14033567,47233.0,47226.0,1.20147349]
[1641218021075,0.18,47232.0,47226.0,1.20147349]
[1641218021274,0.14033567,47233.0,47226.0,1.20147349]
[1641218021479,0.14033567,47233.0,47226.0,1.39247349]
[1641218022076,1.43226174,47229.0,47227.0,0.02117397]
[1641218022880,1.55987877,47231.0,47227.0,0.02117397]
[1641218023081,1.43226174,47231.0,47227.0,0.02117397]
[1641218023475,1.43226174,47231.0,47227.0,0.20917397]
[1641218023980,1.55987877,47232.0,47230.0,0.02117241]
[1641218024874,1.43226174,47234.0,47230.0,0.16150808]
[1641218025579,1.43226174,47234.0,47230.0,0.35150808]
[1641218026973,1.43226174,47234.0,47230.0,0.16150808]
[1641218027576,1.43226174,47234.0,47230.0,0.35050808]
[1641218028883,1.43226174,47234.0,47230.0,0.16150808]
[1641218029485,1.52426174,47234.0,47230.0,0.35050808]
[1641218030586,0.12761703,47233.0,47230.0,0.35050808]
[1641218030784,0.12761703,47233.0,47230.0,0.16150808]
[1641218031291,1.55987877,47233.0,47230.0,0.16150808]
[1641218031489,1.55987877,47233.0,47230.0,0.35450808]
[1641218032687,1.43226174,47233.0,47230.0,0.35450808]
[1641218032885,1.43226174,47233.0,47230.0,0.16150808]
[1641218033287,1.43226174,47234.0,47230.0,0.16150808]
[1641218033492,1.43226174,47234.0,47230.0,0.35450808]
[1641218033688,1.43226174,47234.0,47230.0,0.36430208]
[1641218033894,1.43226174,47234.0,47233.0,0.18]
[1641218034088,1.43226174,47234.0,47233.0,0.2449]
[1641218034693,0.12761703,47238.0,47233.0,0.2449]
[1641218035093,0.12761703,47238.0,47236.0,0.14033567]
[1641218035294,0.12761703,47243.0,47236.0,0.14033567]
[1641218036589,0.12761703,47243.0,47237.0,0.07427097]
[1641218036989,1.67890073,47246.0,47237.0,0.07427097]
[1641218036990,0.12761703,47245.0,47237.0,0.07427097]
[1641218037589,0.12761703,47245.0,47237.0,0.183]
[1641218038792,0.12761703,47245.0,47236.0,0.14033567]
[1641218038999,0.12761703,47245.0,47236.0,0.28067134]
[1641218039592,0.12761703,47245.0,47236.0,0.46767134]
[1641218039593,0.35976214,47237.0,47236.0,0.46767134]
[1641218040893,0.35976214,47237.0,47236.0,0.28067134]
[1641218041097,0.35976214,47238.0,47236.0,0.28067134]
[1641218041295,0.35976214,47238.0,47236.0,0.55590889]
[1641218041501,0.35976214,47238.0,47237.0,0.02116909]
[1641218042896,0.35976214,47239.0,47237.0,0.02116909]
[1641218043502,0.35976214,47239.0,47237.0,0.21316909]
[1641218043697,0.35976214,47239.0,47238.0,0.18]
[1641218044399,0.35976214,47240.0,47239.0,0.42337767]
[1641218044597,0.35976214,47240.0,47239.0,0.60337767]
[1641218045199,0.35976214,47241.0,47239.0,0.60337767]
[1641218045398,0.35976214,47241.0,47240.0,0.009794]
[1641218045601,0.48504274,47243.0,47240.0,0.009794]
[1641218045798,1.32682418,47246.0,47242.0,0.18]
[1641218046199,1.32682418,47246.0,47243.0,0.317786]
[1641218046400,0.59953917,47244.0,47243.0,0.402366]
[1641218046601,0.59953917,47244.0,47243.0,0.403366]
[1641218047017,0.59953917,47244.0,47243.0,0.48004257]
[1641218047220,0.59953917,47244.0,47243.0,0.64154259]
[1641218047419,1.21920715,47247.0,47243.0,0.64154259]
[1641218047621,1.21920715,47247.0,47246.0,0.001]
[1641218047825,0.02,47247.0,47246.0,0.001]
[1641218049516,1.19920715,47252.0,47246.0,0.198]
[1641218049718,1.19920715,47252.0,47249.0,0.18]
[1641218049917,1.19920715,47252.0,47250.0,0.009794]
[1641218050118,1.19920715,47252.0,47250.0,0.326792]
[1641218050518,1.19920715,47253.0,47250.0,0.009794]
[1641218051218,1.19920715,47253.0,47252.0,0.14033567]
[1641218051620,1.19920715,47257.0,47252.0,0.14033567]
[1641218052620,0.11892069,47256.0,47252.0,0.14033567]
[1641218053522,0.11892069,47256.0,47252.0,0.33333567]
[1641218054922,0.83918875,47255.0,47252.0,0.14033567]
[1641218055524,0.59941597,47254.0,47252.0,0.33433567]
[1641218055723,0.59941597,47254.0,47253.0,0.316646]
[1641218056124,0.59941597,47254.0,47252.0,0.33433567]
[1641218056926,0.59941597,47254.0,47252.0,0.14033567]
[1641218057526,0.59941597,47259.0,47252.0,0.33433567]
[1641218058526,0.59941597,47257.0,47252.0,0.33433567]
[1641218059527,0.59941597,47257.0,47252.0,0.33233567]
[1641218059728,0.18,47254.0,47252.0,0.33233567]
[1641218059926,0.24207,47254.0,47244.0,0.14033567]
[1641218060426,0.59941597,47253.0,47244.0,0.14033567]
[1641218061430,1.08125875,47254.0,47244.0,0.14033567]
[1641218061431,0.59941597,47249.0,47244.0,0.14033567]
[1641218061626,0.59941597,47249.0,47239.0,0.009794]
[1641218061827,0.59941597,47249.0,47242.0,0.02116693]
[1641218062029,0.35951077,47247.0,47242.0,0.02116693]
[1641218062828,0.18,47246.0,47242.0,0.02116693]
[1641218063228,0.35951077,47245.0,47242.0,0.02116693]
[1641218063429,0.35951077,47245.0,47237.0,0.14033567]
[1641218063832,0.35951077,47245.0,47238.0,0.0211689]
[1641218064030,0.35951077,47243.0,47238.0,0.0211689]
[1641218064431,0.35951077,47243.0,47237.0,0.14033567]
[1641218064633,0.44878077,47243.0,47237.0,0.14033567]
[1641218065531,0.64078077,47243.0,47237.0,0.14033567]
[1641218065933,0.64078077,47243.0,47242.0,0.02116694]
[1641218066432,0.28127,47243.0,47242.0,0.02116694]
[1641218066640,0.192,47243.0,47237.0,0.14033567]
[1641218066934,0.35951077,47244.0,47237.0,0.14033567]
[1641218067137,0.35951077,47245.0,47237.0,0.14033567]
[1641218067334,0.35951077,47245.0,47242.0,0.02116693]
[1641218067533,0.185,47244.0,47242.0,0.02116693]
[1641218068737,0.24427,47244.0,47242.0,0.02116693]
[1641218068938,0.05927,47244.0,47242.0,0.02116693]
[1641218069651,0.60378077,47244.0,47242.0,0.02116693]
[1641218070543,0.24427,47244.0,47242.0,0.02116693]
[1641218070841,0.05927,47244.0,47242.0,0.02116693]
[1641218071042,0.35951077,47245.0,47242.0,0.02116693]
[1641218071542,0.55051077,47245.0,47242.0,0.02116693]
[1641218072452,0.191,47245.0,47242.0,0.02116693]
[1641218072944,0.49984644,47246.0,47242.0,0.09394693]
[1641218073144,0.49984644,47246.0,47242.0,0.07278]
[1641218073545,0.68684644,47246.0,47242.0,0.07278]
[1641218073744,0.68684644,47246.0,47242.0,0.09394693]
[1641218074044,0.32733567,47246.0,47242.0,0.09394693]
[1641218074644,0.32733567,47246.0,47242.0,0.07278]
[1641218074953,0.14033567,47246.0,47242.0,0.02116693]
[1641218075645,0.32933567,47246.0,47242.0,0.02116693]
[1641218077047,0.14033567,47246.0,47242.0,0.02116693]
[1641218077647,0.33233567,47246.0,47242.0,0.02116693]
[1641218078547,0.69184644,47246.0,47242.0,0.02116693]
[1641218078950,0.49984644,47246.0,47242.0,0.02116693]
[1641218079349,0.35951077,47245.0,47242.0,0.02116693]
[1641218080850,0.14033567,47246.0,47242.0,0.02116693]
[1641218081052,0.83918875,47245.0,47242.0,0.02116693]
[1641218081251,0.59941597,47244.0,47242.0,0.02116693]
[1641218083555,0.78041597,47244.0,47242.0,0.02116693]
[1641218084853,0.59941597,47244.0,47242.0,0.02116693]
[1641218085655,0.78041597,47244.0,47242.0,0.02116693]
[1641218085855,0.35877109,47243.0,47242.0,0.02116693]
[1641218086656,0.78041597,47244.0,47242.0,0.02116693]
[1641218086856,0.59941597,47244.0,47242.0,0.02116693]
[1641218087660,0.77841597,47244.0,47242.0,0.02116693]
[1641218088873,0.59941597,47244.0,47242.0,0.02116693]
[1641218089472,0.77941597,47244.0,47242.0,0.02116693]
[1641218089674,0.96041597,47244.0,47242.0,0.02116693]
[1641218090675,0.59941597,47243.0,47242.0,0.02116693]
[1641218091377,0.59941597,47243.0,47238.0,0.02116891]
[1641218091576,0.78641597,47243.0,47238.0,0.02116891]
[1641218091976,0.187,47243.0,47238.0,0.02116891]
[1641218092179,0.29579196,47243.0,47238.0,0.02116891]
[1641218092979,0.83918875,47244.0,47238.0,0.02116891]
[1641218093383,0.35858649,47240.0,47238.0,0.02116891]
[1641218095583,0.54658649,47240.0,47238.0,0.02116891]
[1641218097083,0.35858649,47240.0,47238.0,0.02116891]
[1641218097284,0.83918875,47244.0,47238.0,0.02116891]
[1641218097285,0.35858649,47241.0,47238.0,0.02116891]
[1641218097685,0.192,47240.0,47238.0,0.02116891]
[1641218098987,0.35858649,47241.0,47238.0,0.02116891]
[1641218099689,0.54258649,47241.0,47238.0,0.02116891]
[1641218100391,0.72258649,47241.0,47238.0,0.02116891]
[1641218100588,0.35858649,47239.0,47238.0,0.02116891]
[1641218101688,0.55158649,47239.0,47238.0,0.02116891]
[1641218101887,0.193,47239.0,47238.0,0.02116891]
[1641218102890,0.30181675,47239.0,47238.0,0.02116891]
[1641218103089,0.10881675,47239.0,47238.0,0.02116891]
[1641218103588,0.29681675,47239.0,47238.0,0.02116891]
[1641218104990,0.10881675,47239.0,47238.0,0.02116891]
[1641218105592,0.29381675,47239.0,47238.0,0.02116891]
[1641218107092,0.10881675,47239.0,47238.0,0.02116891]
[1641218107592,0.29781675,47239.0,47238.0,0.02116891]
[1641218107895,0.189,47239.0,47238.0,0.02116891]
[1641218108493,0.29781675,47239.0,47238.0,0.02116891]
[1641218108993,0.10881675,47239.0,47238.0,0.02116891]
[1641218109594,0.29381675,47239.0,47238.0,0.02116891]
[1641218109994,0.185,47239.0,47238.0,0.02116891]
[1641218110399,0.29381675,47239.0,47238.0,0.02116891]
[1641218110999,0.10881675,47239.0,47238.0,0.02116891]
[1641218111800,0.29681675,47239.0,47238.0,0.02116891]
[1641218113702,0.29981675,47239.0,47238.0,0.02116891]
[1641218115005,0.10881675,47239.0,47238.0,0.02116891]
[1641218115706,0.191,47239.0,47238.0,0.02116891]
[1641218116606,0.29981675,47239.0,47238.0,0.02116891]
[1641218117807,1.43871461,47244.0,47238.0,0.02116891]
[1641218118006,1.67890073,47252.0,47242.0,0.18]
[1641218118208,1.53856506,47251.0,47243.0,0.02116518]
[1641218118405,1.53856506,47251.0,47243.0,0.33988018]
[1641218119107,1.53856506,47251.0,47243.0,0.318715]
[1641218119306,1.53856506,47251.0,47249.0,0.0211641]
[1641218119506,1.53856506,47251.0,47238.0,0.009794]
[1641218119707,0.18,47249.0,47245.0,0.59940042]
[1641218119907,0.25103,47249.0,47245.0,0.73973609]
[1641218120107,0.07103,47249.0,47245.0,0.73973609]
[1641218120507,0.25103,47249.0,47245.0,0.14033567]
[1641218120908,0.07103,47249.0,47245.0,0.14033567]
[1641218121708,0.07103,47249.0,47245.0,0.33333567]
[1641218123012,0.07103,47249.0,47245.0,0.14033567]
[1641218123215,0.18,47250.0,47245.0,0.14033567]
[1641218123414,1.4407817,47249.0,47245.0,0.14033567]
[1641218123815,1.4407817,47249.0,47245.0,0.33333567]
[1641218124316,0.18,47247.0,47245.0,0.33333567]
[1641218124717,0.18,47248.0,47245.0,0.33333567]
[1641218124918,1.6207817,47248.0,47245.0,0.33333567]
[1641218125116,1.6207817,47248.0,47245.0,0.14033567]
[1641218125618,1.4407817,47246.0,47245.0,0.14033567]
[1641218125820,1.4407817,47246.0,47245.0,0.33333567]
[1641218126419,1.6207817,47248.0,47245.0,0.33333567]
[1641218126820,1.4407817,47248.0,47245.0,0.33333567]
[1641218127022,1.4407817,47248.0,47245.0,0.14033567]
[1641218127421,0.18,47246.0,47240.0,0.02116785]
[1641218127620,1.4407817,47248.0,47240.0,0.02116785]
[1641218127621,0.18,47243.0,47240.0,0.02116785]
[1641218127820,0.18,47243.0,47241.0,0.12010648]
[1641218128020,0.32033567,47243.0,47241.0,0.12010648]
[1641218128422,0.32033567,47243.0,47240.0,0.62056827]
[1641218128923,0.32033567,47243.0,47240.0,0.02116785]
[1641218129120,0.32033567,47243.0,47238.0,0.59940042]
[1641218129725,0.14033567,47243.0,47239.0,0.12011462]
[1641218129927,0.18,47240.0,47239.0,0.12011462]
[1641218130931,0.14033567,47243.0,47239.0,0.12011462]
[1641218131129,1.58111737,47243.0,47239.0,0.12011462]
[1641218131835,0.18,47240.0,47239.0,0.30911462]
[1641218132031,0.18,47240.0,47239.0,0.189]
[1641218132633,0.14033567,47241.0,47239.0,0.189]
[1641218132833,0.18,47240.0,47239.0,0.189]
[1641218133033,0.14033567,47241.0,47234.0,0.59940042]
[1641218133636,0.09898221,47240.0,47235.0,0.12011713]
[1641218134036,0.14033567,47236.0,47235.0,0.12011713]
[1641218135740,0.23931788,47236.0,47235.0,0.31411713]
[1641218135942,1.43747557,47236.0,47235.0,0.91351755]
[1641218136741,0.23931788,47236.0,47235.0,0.91351755]
[1641218137040,0.23931788,47236.0,47235.0,0.71951755]
[1641218137639,0.23931788,47236.0,47235.0,0.12011713]
[1641218137840,0.23931788,47236.0,47235.0,0.31611713]
[1641218138642,0.23931788,47236.0,47235.0,0.91643634]
[1641218139042,0.23931788,47236.0,47235.0,0.72043634]
[1641218139842,0.23931788,47236.0,47235.0,0.31511713]
[1641218140444,0.23931788,47236.0,47235.0,0.91542923]
[1641218141046,0.23931788,47236.0,47235.0,0.72042923]
[1641218141745,0.23931788,47236.0,47235.0,0.91542923]
[1641218142045,1.43747557,47236.0,47235.0,0.91542923]
[1641218143145,1.43747557,47236.0,47235.0,0.72042923]
[1641218143847,1.43747557,47236.0,47235.0,0.91542923]
[1641218145048,1.43747557,47236.0,47235.0,0.72042923]
[1641218145648,0.23931788,47236.0,47235.0,0.72042923]
[1641218145847,0.23931788,47236.0,47235.0,0.91542923]
[1641218146052,0.23931788,47236.0,47235.0,0.31511713]
[1641218147852,0.23931788,47236.0,47235.0,0.31411713]
[1641218148255,0.23931788,47236.0,47235.0,1.1549389]
[1641218149153,0.23931788,47236.0,47235.0,0.9609389]
[1641218149853,0.23931788,47236.0,47235.0,0.91271259]
[1641218150653,0.23931788,47236.0,47235.0,0.31211713]
[1641218150855,0.23931788,47236.0,47235.0,1.1529389]
[1641218151056,0.23931788,47236.0,47235.0,0.9609389]
[1641218151856,0.23931788,47236.0,47235.0,0.31211713]
[1641218152055,0.09898221,47236.0,47235.0,0.33328716]
[1641218152857,0.09898221,47238.0,47235.0,0.31211713]
[1641218153259,0.09898221,47238.0,47236.0,0.12011713]
[1641218153863,0.09898221,47238.0,47236.0,0.31111713]
[1641218154263,0.09898221,47240.0,47237.0,0.60056926]
[1641218154462,0.09898221,47240.0,47237.0,0.72068639]
[1641218154664,0.09898221,47240.0,47237.0,0.60056926]
[1641218155782,0.19098221,47240.0,47237.0,0.78956926]
[1641218156681,1.19768606,47238.0,47237.0,0.189]
[1641218157281,1.19768606,47238.0,47237.0,0.12010962]
[1641218157683,1.19768606,47238.0,47236.0,0.12010962]
[1641218157983,1.19768606,47238.0,47237.0,0.19]
[1641218158482,1.19768606,47238.0,47237.0,0.31010962]
[1641218159185,1.19768606,47238.0,47237.0,0.12010962]
[1641218159783,1.19768606,47238.0,47237.0,0.31110962]
[1641218159985,1.19768606,47239.0,47237.0,0.191]
[1641218160283,1.19768606,47239.0,47237.0,0.31110962]
[1641218160683,1.19768606,47239.0,47238.0,0.12010962]
[1641218161788,1.19768606,47239.0,47238.0,0.31010962]
[1641218161984,1.19768606,47239.0,47238.0,0.19]
[1641218162586,1.19768606,47239.0,47238.0,0.31010962]
[1641218162886,1.29666827,47240.0,47238.0,0.31010962]
[1641218163086,1.4407817,47247.0,47238.0,0.30010962]
[1641218163287,1.4407817,47248.0,47242.0,0.18]
[1641218163486,1.4407817,47248.0,47242.0,0.25341]
[1641218163687,1.4407817,47248.0,47243.0,0.12010962]
[1641218163888,1.6007817,47248.0,47243.0,0.12010962]
[1641218164088,1.6007817,47248.0,47247.0,0.001]
[1641218164292,1.1085817,47248.0,47247.0,0.02216302]
[1641218164489,0.14033567,47261.0,47247.0,0.43956462]
[1641218164689,0.14033567,47261.0,47254.0,0.18]
[1641218164889,1.55886433,47259.0,47254.0,0.26251]
[1641218165488,0.14033567,47261.0,47255.0,0.31824]
[1641218166292,0.14033567,47261.0,47256.0,0.18]
[1641218166492,0.14033567,47261.0,47260.0,0.02115917]
[1641218167893,0.14033567,47261.0,47260.0,0.21315917]
[1641218168498,0.14033567,47261.0,47260.0,0.192]
[1641218168694,0.32033567,47261.0,47251.0,0.14033567]
[1641218168893,0.18,47252.0,47248.0,0.60056926]
[1641218169294,0.18,47249.0,47248.0,0.60056926]
[1641218169496,0.06472,47249.0,47248.0,0.60056926]
[1641218169695,0.06472,47249.0,47242.0,0.60056926]
[1641218169895,0.25472,47249.0,47242.0,0.60056926]
[1641218170099,0.18,47248.0,47242.0,0.60056926]
[1641218170395,0.14033567,47246.0,47242.0,0.60056926]
[1641218171097,0.14033567,47246.0,47241.0,0.009794]
[1641218171098,1.58037966,47246.0,47243.0,0.60056926]
[1641218171795,1.76937966,47246.0,47243.0,0.60056926]
[1641218172199,1.76937966,47246.0,47242.0,0.60056926]
[1641218172995,0.32933567,47246.0,47244.0,0.60056926]
[1641218173195,0.14033567,47246.0,47244.0,0.60056926]
[1641218173795,0.32833567,47246.0,47244.0,0.60056926]
[1641218174700,0.32833567,47246.0,47245.0,0.60056926]
[1641218175296,0.14033567,47246.0,47245.0,0.60056926]
[1641218175997,0.32933567,47246.0,47245.0,0.60056926]
[1641218176799,0.32933567,47246.0,47241.0,0.60056926]
[1641218176999,0.42332567,47246.0,47241.0,0.60056926]
[1641218177201,0.23432567,47246.0,47241.0,0.60056926]
[1641218177798,0.42232567,47246.0,47241.0,0.60056926]
[1641218177999,1.44004063,47244.0,47240.0,0.60056926]
[1641218179902,1.62804063,47244.0,47240.0,0.60056926]
[1641218180401,0.09007537,47243.0,47240.0,0.60056926]
[1641218180801,0.18,47242.0,47240.0,0.60056926]
[1641218181203,0.09007537,47243.0,47240.0,0.60056926]
[1641218181400,0.06,47242.0,47239.0,0.86325338]
[1641218181601,0.18,47242.0,47239.0,0.86325338]
[1641218182001,0.18,47242.0,47239.0,0.60056926]
[1641218182601,0.27807537,47243.0,47239.0,0.60056926]
[1641218182802,0.18,47242.0,47239.0,0.60056926]
[1641218183004,0.09007537,47241.0,47239.0,0.60056926]
[1641218183203,0.09007537,47241.0,47238.0,0.86417971]
[1641218183701,0.09007537,47241.0,47238.0,0.60056926]
[1641218183902,0.188,47241.0,47238.0,0.60056926]
[1641218184504,0.32833567,47241.0,47238.0,0.60056926]
[1641218184903,0.09007537,47240.0,47238.0,0.86388068]
[1641218186004,0.27807537,47240.0,47238.0,0.86388068]
[1641218186403,0.27807537,47240.0,47238.0,0.60056926]
[1641218187102,0.09007537,47239.0,47237.0,0.86388068]
[1641218187703,0.09007537,47239.0,47238.0,0.12010596]
[1641218187904,0.27807537,47239.0,47238.0,0.12010596]
[1641218189206,0.09007537,47239.0,47238.0,0.12010596]
[1641218189909,0.27807537,47239.0,47238.0,0.12010596]
[1641218190310,0.188,47239.0,47238.0,0.98444763]
[1641218191110,0.27807537,47239.0,47238.0,0.72067522]
[1641218191311,0.09007537,47239.0,47238.0,0.72067522]
[1641218192011,0.28207537,47239.0,47238.0,1.00561626]
[1641218192613,0.28207537,47239.0,47238.0,0.405047]
[1641218192812,0.28207537,47239.0,47238.0,1.22467533]
[1641218193312,0.09007537,47239.0,47238.0,1.22467533]
[1641218193912,0.27907537,47239.0,47238.0,1.22467533]
[1641218194113,0.27907537,47239.0,47238.0,0.38387837]
[1641218194313,0.27907537,47239.0,47238.0,0.98429762]
[1641218195214,0.09007537,47239.0,47238.0,0.98429762]
[1641218195915,0.28007537,47239.0,47238.0,0.12010596]
[1641218197016,0.28007537,47239.0,47238.0,0.38785257]
[1641218197317,0.09007537,47239.0,47238.0,0.98827182]
[1641218197620,0.17826537,47239.0,47238.0,0.98827182]
[1641218198017,0.36726537,47239.0,47238.0,0.98827182]
[1641218199221,0.17826537,47239.0,47238.0,0.98827182]
[1641218199420,0.09007537,47239.0,47238.0,0.98827182]
[1641218200020,0.28007537,47239.0,47238.0,0.98827182]
[1641218201022,0.28107537,47239.0,47238.0,0.98827182]
[1641218201225,0.09107537,47239.0,47238.0,0.72052521]
[1641218201424,0.09007537,47240.0,47237.0,0.60041925]
[1641218201825,0.09007537,47239.0,47238.0,0.87134668]
[1641218202624,0.27507537,47240.0,47238.0,0.60041925]
[1641218203229,0.09007537,47240.0,47238.0,0.60041925]
[1641218203630,0.09007537,47239.0,47238.0,0.87134668]
[1641218204140,0.09007537,47239.0,47238.0,1.04434668]
[1641218204430,1.706116,47240.0,47238.0,0.173]
[1641218205449,0.09007537,47239.0,47237.0,0.60041925]
[1641218205849,0.09007537,47239.0,47238.0,0.14]
[1641218206347,0.27907537,47240.0,47238.0,0.14]
[1641218206847,0.001,47239.0,47238.0,0.14]
[1641218207048,0.27907537,47240.0,47238.0,0.14]
[1641218207248,0.001,47239.0,47235.0,0.60041925]
[1641218207449,0.18,47238.0,47235.0,0.60041925]
[1641218207649,0.18,47238.0,47233.0,0.02117093]
[1641218207848,0.18,47238.0,47235.0,0.158]
[1641218208451,1.19755484,47236.0,47235.0,0.158]
[1641218208649,1.28494484,47236.0,47235.0,0.158]
[1641218208852,0.22772567,47236.0,47235.0,0.158]
[1641218209251,0.40772567,47236.0,47229.0,0.60041925]
[1641218209652,0.40772567,47236.0,47230.0,0.1201185]
[1641218209851,0.58972567,47236.0,47230.0,0.1201185]
[1641218210054,0.18,47233.0,47230.0,0.1201185]
[1641218210255,0.59854745,47231.0,47230.0,0.1201185]
[1641218210854,0.14133567,47231.0,47230.0,0.1201185]
[1641218211056,0.14133567,47231.0,47229.0,0.76141925]
[1641218211255,0.181,47230.0,47227.0,0.60041925]
[1641218211453,0.001,47228.0,47227.0,0.60041925]
[1641218211854,0.191,47228.0,47227.0,0.60041925]
[1641218212856,0.33133567,47228.0,47224.0,0.60041925]
[1641218213059,0.181,47225.0,47224.0,0.60041925]
[1641218213256,0.25949,47225.0,47224.0,0.60041925]
[1641218213857,0.44149,47225.0,47224.0,0.70841925]
[1641218214256,0.26149,47225.0,47224.0,0.108]
[1641218214855,0.44149,47225.0,47224.0,0.108]
[1641218215055,1.54667723,47225.0,47224.0,0.108]
[1641218215256,1.54467723,47225.0,47222.0,0.02]
[1641218215456,1.54367723,47225.0,47222.0,0.02]
[1641218215657,1.36367723,47225.0,47222.0,0.02]
[1641218215857,0.18,47224.0,47222.0,0.169]
[1641218216057,1.55167723,47225.0,47222.0,0.169]
[1641218216557,1.73167723,47225.0,47222.0,0.169]
[1641218216758,0.09007537,47223.0,47222.0,0.169]
[1641218217158,0.23041104,47223.0,47222.0,0.169]
[1641218217359,0.23041104,47223.0,47222.0,0.02]
[1641218217761,0.97732202,47223.0,47222.0,0.02]
[1641218217960,1.15332202,47223.0,47222.0,0.198]
[1641218218763,1.24339739,47223.0,47222.0,0.198]
[1641218219362,1.06739739,47223.0,47222.0,0.02]
[1641218219962,1.06739739,47223.0,47222.0,0.214]
[1641218220564,0.23041104,47223.0,47222.0,0.214]
[1641218221268,0.14033567,47223.0,47222.0,0.02]
[1641218221564,0.73818848,47223.0,47222.0,0.02]
[1641218222165,0.73818848,47223.0,47222.0,0.215]
[1641218222965,0.73818848,47223.0,47222.0,0.40602558]
[1641218223366,0.73818848,47223.0,47222.0,0.21102558]
[1641218223566,0.49911366,47223.0,47222.0,0.92519857]
[1641218223966,0.60311366,47223.0,47222.0,1.10919857]
[1641218225268,0.33444262,47223.0,47222.0,0.27489]
[1641218225469,0.33444262,47223.0,47222.0,0.204]
[1641218225870,0.23044262,47223.0,47222.0,0.02]
[1641218226170,0.23044262,47223.0,47222.0,0.2]
[1641218226171,0.40544262,47223.0,47222.0,0.2]
[1641218227270,0.23044262,47223.0,47222.0,0.02]
[1641218227470,0.23044262,47223.0,47215.0,1.2008957]
[1641218227471,0.51473607,47223.0,47215.0,1.2008957]
[1641218227671,0.12,47216.0,47213.0,1.43903652]
[1641218227871,0.33473607,47223.0,47213.0,1.43903652]
[1641218228072,0.18,47221.0,47215.0,0.152]
[1641218228373,0.18,47216.0,47215.0,0.152]
[1641218228571,0.18,47221.0,47215.0,0.152]
[1641218228974,1.43484674,47218.0,47215.0,0.152]
[1641218229173,0.14033567,47216.0,47215.0,0.152]
[1641218229373,0.14033567,47216.0,47206.0,0.14033567]
[1641218229573,0.14033567,47216.0,47208.0,0.18]
[1641218229773,0.14033567,47216.0,47207.0,0.12015898]
[1641218229974,0.25733567,47216.0,47209.0,0.13217488]
[1641218230374,0.25733567,47216.0,47208.0,0.13217488]
[1641218230774,0.25733567,47216.0,47210.0,0.0120159]
[1641218230975,0.25733567,47216.0,47209.0,0.0120159]
[1641218231175,0.25733567,47216.0,47215.0,0.18]
[1641218231374,0.25733567,47216.0,47215.0,0.2724]
[1641218231375,0.14033567,47216.0,47215.0,0.2724]
[1641218231576,0.14033567,47216.0,47215.0,0.55116971]
[1641218231784,0.14033567,47216.0,47215.0,0.56096371]
[1641218231976,0.14033567,47216.0,47215.0,0.76297961]
[1641218232576,0.3573417,47224.0,47218.0,0.27401506]
[1641218232776,0.3573417,47224.0,47223.0,0.18]
[1641218232976,0.3573417,47224.0,47223.0,0.189794]
[1641218232977,0.100391,47224.0,47223.0,0.189794]
[1641218233178,0.24072667,47228.0,47223.0,0.192807]
[1641218233379,0.24072667,47228.0,47227.0,0.18]
[1641218233681,0.14033567,47228.0,47227.0,0.26683]
[1641218234081,0.14033567,47228.0,47227.0,0.46083]
[1641218234778,0.14033567,47228.0,47227.0,0.28083]
[1641218235484,0.14033567,47228.0,47227.0,0.08683]
[1641218235781,0.14033567,47228.0,47224.0,0.18]
[1641218235983,0.14033567,47228.0,47227.0,0.167]
[1641218237384,0.14033567,47228.0,47223.0,0.009794]
[1641218238085,0.14033567,47228.0,47223.0,0.175794]
[1641218239499,0.14033567,47228.0,47223.0,0.009794]
[1641218240100,0.14033567,47228.0,47223.0,0.176794]
[1641218240701,0.14033567,47228.0,47227.0,0.13301337]
[1641218241002,0.14033567,47228.0,47227.0,0.21742337]
[1641218242002,0.14033567,47228.0,47227.0,0.25041]
[1641218242703,0.14033567,47228.0,47227.0,0.166]
[1641218243502,0.14033567,47228.0,47223.0,0.009794]
[1641218244103,0.14033567,47228.0,47223.0,0.148794]
[1641218245304,0.14033567,47228.0,47223.0,0.009794]
[1641218246007,0.14033567,47228.0,47223.0,0.153794]
[1641218247007,0.14033567,47228.0,47223.0,0.144]
[1641218247508,0.14033567,47228.0,47220.0,0.14033567]
[1641218248107,0.14033567,47228.0,47220.0,0.31333567]
[1641218248509,0.14033567,47228.0,47221.0,0.12016088]
[1641218250008,0.14033567,47228.0,47221.0,0.171]
[1641218251409,0.14033567,47228.0,47220.0,0.14033567]
[1641218251915,0.14033567,47228.0,47221.0,0.12016188]
[1641218252513,0.09012147,47227.0,47224.0,0.59906833]
[1641218254012,0.09012147,47227.0,47224.0,0.77206833]
[1641218254815,1.52496821,47227.0,47224.0,0.77206833]
[1641218255015,1.52496821,47227.0,47224.0,0.173]
[1641218255515,1.52496821,47227.0,47223.0,0.59906833]
[1641218255917,1.52496821,47227.0,47220.0,0.14033567]
[1641218255918,0.09012147,47226.0,47224.0,0.59906833]
[1641218257119,1.52496821,47227.0,47224.0,0.59906833]
[1641218257317,1.52496821,47227.0,47223.0,0.59906833]
[1641218257918,0.09012147,47226.0,47223.0,0.59906833]
[1641218258119,0.09012147,47226.0,47223.0,0.77006833]
[1641218258822,0.001,47224.0,47223.0,0.77006833]
[1641218259221,1.43584674,47224.0,47223.0,0.171]
[1641218259420,1.43584674,47224.0,47220.0,0.739404]
[1641218259625,1.43484674,47224.0,47220.0,0.739404]
[1641218260021,1.43484674,47224.0,47220.0,0.59906833]
[1641218260423,0.09012147,47226.0,47220.0,0.59906833]
[1641218260624,0.18,47223.0,47220.0,0.59906833]
[1641218260825,0.06891,47223.0,47219.0,0.59906833]
[1641218261524,0.14033567,47222.0,47219.0,0.59906833]
[1641218262025,1.57181877,47222.0,47219.0,0.59906833]
[1641218262526,1.66194024,47222.0,47219.0,0.59906833]
[1641218262727,1.66194024,47222.0,47218.0,0.59906833]
[1641218263529,0.09012147,47221.0,47219.0,0.71924144]
[1641218263927,0.09012147,47221.0,47219.0,0.59906833]
[1641218264128,0.09012147,47221.0,47219.0,0.72306833]
[1641218264328,0.06,47223.0,47219.0,0.72306833]
[1641218264529,0.18,47223.0,47219.0,0.72306833]
[1641218265232,0.09012147,47222.0,47219.0,0.124]
[1641218265431,0.09012147,47222.0,47217.0,0.59906833]
[1641218266031,0.28112147,47222.0,47217.0,0.59906833]
[1641218266333,1.71260457,47222.0,47216.0,0.739404]
[1641218266932,0.09012147,47221.0,47217.0,0.25105193]
[1641218267234,0.09012147,47221.0,47217.0,0.85012026]
[1641218267433,0.09012147,47221.0,47217.0,0.72994236]
[1641218268033,0.189,47221.0,47217.0,0.85694236]
[1641218269334,0.189,47221.0,47217.0,0.72606833]
[1641218269534,0.09012147,47220.0,47217.0,0.59906833]
[1641218269735,0.09012147,47220.0,47216.0,0.739404]